Cogmind - Beta 9.6 @@@ ROGUE MODE // 2020.08.04 @ 20:49:26 Player: Shamgod Result: Destroyed by G-47 Trooper with Particle Gun Performance ------------- Evolutions (0) 0 Regions Visited (1) 200 Robots Destroyed (10) 50 Value Destroyed (348) 348 Prototype IDs (3) 60 Alien Tech Used (0) 0 Bonus (0) 0 TOTAL SCORE: 658 Bonus ------- None Cogmind --------- Core Integrity 0/250 Matter 300/300 Energy 100/100 System Corruption 0% Temperature Cool (9) Movement Core (550) Ox10 Location -10/Materials Parts ------- > --- POWER (1) -------- (None) > --- PROPULSION (2) --- (None) > --- UTILITY (2) ------ Large Storage Unit Large Storage Unit > --- WEAPON (2) ------- (None) > --- INVENTORY (16) --- Aluminum Leg Aluminum Leg Aluminum Leg Compact Wheel Heat Sink Small Storage Unit Small Matter Pod (50) Tractor Beam Peak State ------------ > --- POWER ------------ Light Ion Engine > --- PROPULSION ------- Aluminum Leg Aluminum Leg > --- UTILITY ---------- Large Storage Unit Large Storage Unit > --- WEAPON ----------- Beam Cannon Light Assault Rifle > --- INVENTORY -------- Beam Cannon Beam Cannon Beam Cannon Assault Rifle [Rating: 7] Favorites ----------- Power Light Ion Engine Engine Light Ion Engine Propulsion Aluminum Leg Leg Aluminum Leg Utility Large Storage Unit Storage Large Storage Unit Weapon Assault Rifle Energy Cannon Beam Cannon Ballistic Gun Assault Rifle Build | -11 -10 ------- Run | Scr Mat Slots Evolved . | . . Power . | . . Propulsion . | . . Utility . | . . Weapon . | . . Parts Attached 14 | 5 9 Power 1 | 1 . Engine 1 | 1 . Core . | . . Reactor . | . . Propulsion 3 | 2 1 Treads . | . . Leg 3 | 2 1 Wheel . | . . Hover . | . . Flight . | . . Utility 3 | . 3 Device . | . . Storage 3 | . 3 Processor . | . . Hackware . | . . Protection . | . . Artifact . | . . Weapon 7 | 2 5 Energy Gun . | . . Energy Cannon 4 | . 4 Ballistic Gun 3 | 2 1 Ballistic Cannon . | . . Launcher . | . . Special Weapon . | . . Impact Weapon . | . . Slashing Weapon . | . . Piercing Weapon . | . . Special Melee Weapon . | . . Unidentified Prototypes . | . . Parts Lost 7 | . 7 Power 1 | . 1 Propulsion 3 | . 3 Utility . | . . Weapon 3 | . 3 Highest Loss Streak 4 | . 4 Average Slot Usage (%) 85 | . 85 Engine 4 | . 4 Leg 27 | . 27 Storage 25 | . 25 Energy Cannon 15 | . 15 Ballistic Gun 11 | . 11 Naked Turns . | . . Heaviest Build 41 | 6 41 Greatest Support 20 | 20 20 Greatest Overweight (x) 3 | . 3 Average Overweight (x) . | . . Largest Inventory Capacity 16 | 4 16 Average Capacity 7 | 4 15 Most Carried 8 | 2 8 Average Carried 1 | . 5 Final Capacity 16 | 4 16 Final Carried 8 | . 8 Class Distribution -------------------- 100% | Mutant Dominant Class ---------------- Mutant | -10/Materials Resources | -11 -10 ----------- Run | Scr Mat Matter Collected 433 | 270 163 Remotely . | . . Salvage Created 480 | 36 444 Parts 22 | 3 19 Haulers Intercepted . | . . Recyclers Shooed 3 | . 3 Parts Field Recycled . | . . Retrieved Matter . | . . Parts Self-Destructed . | . . Prevented . | . . Kills | -11 -10 ------- Run | Scr Mat Combat Hostiles Destroyed 9 | 1 8 Guns 2 | 1 1 Cannons 7 | . 7 Classes Destroyed 2 | 1 1 Recycler 1 | . 1 Grunt 9 | 1 8 Best Kill Streak 3 | 1 3 Combat Bots Only 3 | 1 3 Max Kills in Single Turn 1 | 1 1 Gunslinging . | . . Exploded . | . . Melee . | . . Uniques/NPCs Destroyed . | . . Combat | -11 -10 -------- Run | Scr Mat Damage Taken 1006 | 65 941 Core 266 | 23 243 Absorbed by Shields . | . . Core Remaining (%) 90 | 90 . Volleys Fired 46 | 5 41 Largest 2 | 2 2 Hottest 120 | 40 120 Shots Fired 78 | 10 68 Gun 35 | 10 25 Cannon 43 | . 43 Launcher . | . . Special . | . . Kinetic 35 | 10 25 Thermal 43 | . 43 Explosive . | . . Electromagnetic . | . . Robot Hit Streak 11 | 2 11 Robot Miss Streak 2 | 2 2 Penetration Max . | . . Secondary Targets . | . . Shots Hit Robots 46 | 5 41 Core Hits 22 | 2 20 Critical Hits . | . . Critical Kills . | . . Critical Parts Destroyed . | . . Melee Attacks . | . . Impact . | . . Slashing . | . . Piercing . | . . Sneak Attacks . | . . Combat Hostiles . | . . Follow-up Attacks . | . . Damage Inflicted 733 | 57 676 Guns 214 | 57 157 Cannons 474 | . 474 Explosions . | . . Melee . | . . Ramming 45 | . 45 Kinetic 214 | 57 157 Thermal 474 | . 474 Explosive . | . . Electromagnetic . | . . Impact . | . . Slashing . | . . Piercing . | . . Highest Corruption . | . . Average Corruption . | . . Corruption Purged . | . . Overload Shots . | . . Overflow Damage . | . . Projectiles . | . . Explosions . | . . Melee . | . . Knockbacks . | . . Impact . | . . Kinetic . | . . Secondary . | . . Self-Inflicted Damage 14 | . 14 Shots . | . . Rammed 11 | . 11 Targets Rammed 16 | . 16 Kicked 5 | . 5 Crushed . | . . Highest Temperature 310 | 12 310 Average Temperature 85 | 7 88 Received Heat Transfer 558 | 36 522 Effects 4 | . 4 Shutdowns 1 | . 1 Interference 3 | . 3 Siege Activations . | . . Robots Corrupted . | . . Combat Hostiles . | . . Parts Fried . | . . Impact Corruptions . | . . Robots Melted . | . . Combat Hostiles . | . . Parts Melted 1 | . 1 Heat Transferred 999 | . 999 Parts Sabotaged . | . . Parts Stolen . | . . Parts Stripped . | . . Power Chain Reactions . | . . Missiles Intercepted . | . . Alert | -11 -10 ------- Run | Scr Mat Peak Influence 205 | 20 205 Average Influence 23 | 3 74 Maximum Alert Level 1 | . 1 Low Security (%) 95 | 100 85 Level 1 4 | . 14 Level 2 . | . . Level 3 . | . . Level 4 . | . . Level 5 . | . . High Security . | . . Max Security . | . . Squads Dispatched 2 | . 2 Investigation 2 | . 2 Extermination . | . . Reinforcement . | . . Assault . | . . Garrison . | . . Intercept . | . . Construction Impeded . | . . Haulers Reinforced . | . . Stealth | -11 -10 --------- Run | Scr Mat Distress Signals 1 | . 1 Communications Jammed . | . . Distress Signals . | . . Times Spotted 12 | 1 11 Peak Tracking Total 3 | 1 3 Tactical Retreats . | . . Traps | -11 -10 ------- Run | Scr Mat Traps Triggered 1 | . 1 Indirectly . | . . Trap Hack Attempts . | . . Triggered . | . . Disarmed . | . . Reprogrammed . | . . Reused . | . . Traps Extracted . | . . Installed . | . . Triggered . | . . Machines | -11 -10 ---------- Run | Scr Mat Machines Disabled 1 | . 1 Max in Single Turn 1 | . 1 Machines Sabotaged . | . . Garrisons Compromised . | . . Overloaded Fab Kills . | . . Fab Network Shutdowns . | . . Hacking | -11 -10 --------- Run | Scr Mat Machines Accessed 3 | . 3 Terminals 2 | . 2 Fabricators . | . . Repair Stations 1 | . 1 Recycling Units . | . . Scanalyzers . | . . Garrison Access . | . . Total Hacks 16 | . 16 Successful 13 | . 13 Failed 3 | . 3 Catastrophic . | . . Database Lockouts . | . . Manual . | . . Terminals 12 | . 12 Fabricators . | . . Repair Stations 4 | . 4 Recycling Units . | . . Scanalyzers . | . . Garrison Access . | . . Terminal Hacks 10 | . 10 Record 4 | . 4 Prototype ID Bank 2 | . 2 Recycling Unit Index 1 | . 1 Alert Level 1 | . 1 Reinforcement Status 1 | . 1 Zone Layout 1 | . 1 Fabricator Hacks . | . . Repair Station Hacks 3 | . 3 Scan Component 2 | . 2 Repair 1 | . 1 Recycling Unit Hacks . | . . Scanalyzer . | . . Garrison Access Hacks . | . . Unauthorized Hacks . | . . Terminals . | . . Fabricators . | . . Repair Stations . | . . Recycling Units . | . . Scanalyzers . | . . Garrison Access . | . . Data Cores Recovered . | . . Used . | . . Hacking Detections 3 | . 3 Full Trace Events 2 | . 2 Feedback Events . | . . Feedback Blocked . | . . Robot Schematics Acquired . | . . Robots Built . | . . Matter . | . . Time . | . . Total Robot Build Rating . | . . Part Schematics Acquired . | . . Parts Built . | . . Matter . | . . Time . | . . Total Part Build Rating . | . . Parts Repaired 1 | . 1 Time 26 | . 26 Parts Recycled . | . . Recycled Matter . | . . Retrieved Matter . | . . Retrieved Components . | . . Parts Scanalyzed . | . . Part Schematics Acquired . | . . Parts Damaged . | . . Bothacking | -11 -10 ------------ Run | Scr Mat Used RIF Installer . | . . Robots Hacked . | . . Non-combat . | . . Combat . | . . Robot Hacks Applied . | . . Relay Couplers Released . | . . Robots Rewired . | . . Allies Hacked . | . . Hacks Repelled . | . . Allies | -11 -10 -------- Run | Scr Mat Total Allies . | . . Largest Group . | . . Highest-Rated Group . | . . Highest-Rated Ally . | . . Total Orders . | . . Ally Attacks . | . . Total Damage . | . . Kills . | . . Allies Corrupted . | . . Allies Melted . | . . Intel | -11 -10 ------- Run | Scr Mat Robot Analysis Total . | . . Derelict Logs Recovered . | . . Drone Launches . | . . Drone Recoveries . | . . Exploration | -11 -10 ------------- Run | Scr Mat Turns Passed 2138 | 1538 600 Spaces Moved 645 | 417 228 Core 39 | 39 . Treads . | . . Legs 606 | 378 228 Wheels . | . . Hover . | . . Flight . | . . Fastest Speed 50 | 50 120 Average Speed 126 | 113 148 Slowest Speed 210 | 120 210 Overloaded Moves . | . . Propulsion Burnouts . | . . Robots Hopped . | . . Cave-ins Triggered . | . . Exploration Rate (%) 28 | 32 24 Regions Visited 1 Branch Regions . Pre-discovered Areas . | . . Known Exits Taken . | . . Unknown Exits Taken 1 | 1 . Scrap Searched . | . . Spaces Dug . | . . Terrain Destroyed . | . . Melee . | . . Projectile . | . . AOE . | . . Actions | -11 -10 --------- Run | Scr Mat Total 1884 | 1474 410 Wait 1128 | 1039 89 Move 644 | 416 228 Hop . | . . Pick Up 26 | 7 19 Fast Attach . | . . Attach 11 | 5 6 Detach 2 | . 2 Swap 3 | . 3 Drop 8 | 2 6 Fire 46 | 5 41 Melee . | . . Ram 2 | . 2 Kick 14 | . 14 Crush . | . . Escape Stasis . | . . Rewire . | . . Trap . | . . Miscellaneous . | . . Route ------- -11/Scrapyard -10/Materials History --------- Turn | Location | Event 2 | -11/Scrapyard | Met Revision 17 80 | -11/Scrapyard | Discovered new exit (range 8) 1539 | -11/Scrapyard | Entered Materials 1540 | -10/Materials | Build established: Mutant 1757 | -10/Materials | Core integrity fell below 50% 1965 | -10/Materials | Repaired Aluminum Leg 2110 | -10/Materials | Core integrity fell below 20% 2139 | -10/Materials | Destroyed by G-47 Trooper with Particle Gun Last Messages --------------- 02023_ K-01 Serf collects debris. 02034_ Destroyed Hover Unit. [Achievement: Crack Shot] 02106_ G-34 Mercenary destroyed. 02107_ Beam Cannon destroyed. 02113_ Assault Rifle destroyed. 02113_ Kicked G-47 Trooper out of the way. 02115_ Slammed into G-47 Trooper. 02116_ Kicked G-47 Trooper out of the way. 02118_ Slammed into G-47 Trooper. 02121_ Kicked G-47 Trooper out of the way. 02122_ Slammed into G-47 Trooper. 02127_ R-06 Scavenger collects Aluminum Leg. 02128_ Kicked G-47 Trooper out of the way. 02129_ Aluminum Leg destroyed. 02130_ Slammed into G-47 Trooper. 02131_ Aluminum Leg destroyed. 02132_ Slammed into G-47 Trooper. 02137_ Destabilizing: Core damaged (-7). [Achievement: First Step to Greatness] Map ----- +----------------------------------------------------+ | ???????????????????????????????????????????????? | | ???????????????????????????????????????????????? | | ???????????????????????????????????????????????? | | ???????????????????????????????????????????????? | | ???????????????????????????????????????????????? | | ???????????????????????????????????????????????? | | ???????????????????????????????????????????????? | | ???????????????????????????????????????????????? | | ???????????????????????????????????????????????? | | ???????????????????????????????????????????????? | | ???????????????????????????????????????????????? | | ???????????????????????????????????????????????? | | ???????????????????????????????????????????????? | | ???????????????????????????????????????????????? | | ????????????????????????######?????????????????? | | ????????????????????????# ?????????????????? | | ???????????????#######??# ??????????????????? | | ???????????????? ??# ??????????????????? | | ???????????????? ??# #??????????????????? | | ????????????????? ??# #??????????????????? | | ?????????????????? ??+ #??????????????????? | | ?????????????????? ??# #??????????????????? | | ??????????????????? ??# #??????????????????? | | ???????????????????#+#??# #??????????????????? | | ???????????????????# #### #??????????????????? | | ??????????# # @ +??????????????????? | | ??????????# ; % g #??????????????????? | | ??????????# # %%% #??????????????????? | | ??????????? ![????###+##%% #??????????????????? | | ???????????????????# # r#??????????????????? | | ???????????????????#!%= + #??????????????????? | | ???????????????????# # #??????#???????????? | | ???????????????????# # #???? #???????????? | | ???????????????????# # #?? #???????????? | | ???????????????????+ # a# #???????????? | | ???????????????????# # + #???????????? | | ???????????????????# # # #???????????? | | ???????????????????# # u #?? #???????????? | | ???????????????????###### #????###???????????? | | ????????????????????????# ku#??????????????????? | | ????????????????????????# #????#####?????????? | | ?????????????###+######## ###### #?????????? | | ?????????# #?????????? | | ?????????????###+#########+####### ##########? | | ???????????????????????# %%%% #?# # """ #? | | ???????????????????????# "" % #?# # """" #? | | ???????????????????????# "" ### # " """ #? | | ???????????????????????# " + # """ #? | | ???????????????????????# ### +% " #? | | ???????????????????????# #?# # % #? | +----------------------------------------------------+ Best States ------------- Heat Dissipation 25 Energy Generation 10 Energy Capacity 125 Matter Stores 300 Matter Capacity 300 Sight Range 16 Terrain Scan Density 10 Evasion (%) 50 Item Schematics ----------------- None Robot Schematics ------------------ None Fabricated ------------ Nothing Alien Tech Used ----------------- None Achievements -------------- Crack Shot First Step to Greatness One Hack Too Far Part-time Mechanic Challenges ------------ None Game ------ Seed IntegrityScatterBlaster Manual? 0 Play Time 00:27:38 Cumulative 2.5 hours Start 2020.08.04 @ 20:21:13 End 2020.08.04 @ 20:49:26 Sessions 1 Manual Loads 0 Difficulty Rogue Special Mode None Game No. 4 Rogue 4 Adventurer 0 Explorer 0 Win Type - Total 0 Types 0/0/0/0/0/0/0 Lore% 0 Gallery% 4 Achievement% 1 Wizard Run 0 Options --------- ASCII 0 Keyboard 1 Movement Numpad Keybinds 0 Fullscreen 1 Font 16/Terminus Map View 76x50 Tactical HUD 1 Map Filters NONE Filters NONE Steam 1 RUN: c5ca831c-b958-4dd2-89fd-4944a6fca144